fUST/lending_fUST_20260521
["ID","MTS","AMOUNT","RATE_DAILY","PERIOD"]
[422729676,1779330641000,-500.0,8.767e-05,2]
[422729682,1779330641000,-500.0,8.767e-05,2]
[422729675,1779330641000,-679.9,8.767e-05,2]
[422729658,1779330641000,-500.0,8.767e-05,2]
[422729670,1779330641000,-500.0,8.767e-05,2]
[422729672,1779330641000,-500.0,8.767e-05,2]
[422729671,1779330641000,-500.0,8.767e-05,2]
[422729669,1779330641000,-500.0,8.767e-05,2]
[422729666,1779330641000,-500.0,8.767e-05,2]
[422729663,1779330641000,-669.59,8.767e-05,2]
[422729660,1779330641000,-500.0,8.767e-05,2]
[422729664,1779330641000,-500.0,8.767e-05,2]
[422729668,1779330641000,-500.0,8.767e-05,2]
[422729667,1779330641000,-500.0,8.767e-05,2]
[422729662,1779330641000,-500.0,8.767e-05,2]
[422729661,1779330641000,-500.0,8.767e-05,2]
[422729659,1779330641000,-500.0,8.767e-05,2]
[422729673,1779330641000,-500.0,8.767e-05,2]
[422729686,1779330641000,-500.0,8.767e-05,2]
[422729688,1779330641000,-854.13,8.767e-05,2]
[422729692,1779330641000,-637.47,8.767e-05,2]
[422729689,1779330641000,-775.83,8.767e-05,2]
[422729725,1779330641000,-251.33169379,8.767e-05,2]
[422729723,1779330641000,-500.0,8.767e-05,2]
[422729720,1779330641000,-913.62,8.767e-05,2]
[422729724,1779330641000,-480.23024015,8.767e-05,2]
[422729721,1779330641000,-500.0,8.767e-05,2]
[422729719,1779330641000,-497.62947679,8.767e-05,2]
[422729717,1779330641000,-500.0,8.219e-05,2]
[422729718,1779330641000,-500.0,8.493e-05,2]
[422729712,1779330641000,-811.18,8.767e-05,2]
[422729710,1779330641000,-954.55,8.767e-05,2]
[422729708,1779330641000,-548.28,8.767e-05,2]
[422729713,1779330641000,-500.0,8.767e-05,2]
[422729722,1779330641000,-1093.76,8.767e-05,2]
[422729706,1779330641000,-572.54,8.767e-05,2]
[422729694,1779330641000,-1119.49,8.767e-05,2]
[422729691,1779330641000,-500.0,8.767e-05,2]
[422729690,1779330641000,-500.0,8.767e-05,2]
[422729693,1779330641000,-2986.38,8.767e-05,2]
[422729707,1779330641000,-914.63,8.767e-05,2]
[422729695,1779330641000,-500.0,8.767e-05,2]
[422729696,1779330641000,-579.69,8.767e-05,2]
[422729699,1779330641000,-2356.35,8.767e-05,2]
[422729700,1779330641000,-500.0,8.767e-05,2]
[422729702,1779330641000,-1230.34,8.767e-05,2]
[422729704,1779330641000,-500.0,8.767e-05,2]
[422729714,1779330641000,-93.87052321,8.767e-05,2]
[422729697,1779330641000,-160.01044451,8.767e-05,2]
[422729746,1779330647000,-507.23,8.493e-05,2]
[422729745,1779330647000,-507.23,8.219e-05,2]
[422729748,1779330647000,-3013.17,8.767e-05,2]
[422729751,1779330647000,-1334.61193394,8.767e-05,2]
[422729749,1779330647000,-500.0,8.767e-05,2]
[422729750,1779330647000,-500.0,8.767e-05,2]
[422729747,1779330647000,-94.75806606,8.767e-05,2]
[422729753,1779330798000,854.06,0.000178,120]
[422729756,1779331127000,-240.0,8.017e-05,2]
[422729755,1779331127000,-760.0,8.016e-05,5]
[422729758,1779331129000,-300.0,8.018e-05,2]
[422729757,1779331129000,-369.15860864,8.017e-05,2]
[422729760,1779331159000,-300.0,8.218e-05,2]
[422729761,1779331159000,-162.3155,8.219e-05,2]
[422729759,1779331159000,-537.6845,8.214e-05,2]
[422729762,1779331161000,-337.6845,8.219e-05,2]
[422729763,1779331161000,-500.0,8.219e-05,2]
[422729766,1779331161000,-413.30832352,8.018e-05,2]
[422729765,1779331161000,-500.0,8.018e-05,2]
[422729764,1779331161000,-162.3155,8.219e-05,2]
[422729767,1779331161000,-86.69167648,8.219e-05,2]
[422729768,1779331162000,-250.99282352,8.219e-05,2]
[422729770,1779331162000,-249.00717648,8.219e-05,2]
[422729769,1779331162000,-500.0,8.219e-05,2]
[422729771,1779331163000,-250.99282352,8.219e-05,2]
[422729772,1779331163000,-500.0,8.219e-05,2]
[422729774,1779331163000,-502.77282352,8.219e-05,2]
[422729775,1779331163000,-497.22717648,8.219e-05,2]
[422729773,1779331163000,-249.00717648,8.219e-05,2]
[422729776,1779331164000,-2.77282352,8.219e-05,2]
[422729777,1779331164000,-501.82892332,8.219e-05,2]
[422729778,1779331164000,-495.39825316,8.219e-05,2]
[422729781,1779331165000,-500.0,8.219e-05,2]
[422729782,1779331165000,-286.87426073,8.219e-05,2]
[422729780,1779331165000,-207.55527033,8.219e-05,2]
[422729779,1779331165000,-5.57046894,8.219e-05,2]
[422729785,1779331166000,-285.09591771,8.219e-05,2]
[422729784,1779331166000,-500.0,8.219e-05,2]
[422729783,1779331166000,-214.90408229,8.219e-05,2]
[422729787,1779331166000,-500.0,8.219e-05,2]
[422729788,1779331166000,-285.09591771,8.219e-05,2]
[422729786,1779331166000,-214.90408229,8.219e-05,2]
[422729794,1779331167000,-281.21580118,8.219e-05,2]
[422729792,1779331167000,-218.78419882,8.219e-05,2]
[422729793,1779331167000,-500.0,8.219e-05,2]
[422729791,1779331167000,-284.20580118,8.219e-05,2]
[422729790,1779331167000,-500.89011653,8.219e-05,2]
[422729789,1779331167000,-214.90408229,8.219e-05,2]
[422729795,1779331168000,-218.78419882,8.219e-05,2]
[422729797,1779331168000,-281.21580118,8.219e-05,2]
[422729796,1779331168000,-500.0,8.219e-05,2]
[422729803,1779331174000,-188.9264874,8.219e-05,2]
[422729802,1779331174000,-591.3920025,8.219e-05,2]
[422729801,1779331174000,-219.6815101,8.219e-05,2]
[422729798,1779331174000,-219.6815101,8.219e-05,2]
[422729799,1779331174000,-500.0,8.219e-05,2]
[422729800,1779331174000,-280.3184899,8.219e-05,2]
[422729804,1779331175000,-411.3035126,8.219e-05,2]
[422729805,1779331175000,-501.3988894,8.219e-05,2]
[422729808,1779331175000,-501.407598,8.219e-05,2]
[422729807,1779331175000,-498.592402,8.219e-05,2]
[422729806,1779331175000,-87.297598,8.219e-05,2]
[422729816,1779331176000,-114.20702508,8.219e-05,2]
[422729814,1779331176000,-384.1598558,8.219e-05,2]
[422729815,1779331176000,-501.63311912,8.219e-05,2]
[422729813,1779331176000,-116.87116295,8.219e-05,2]
[422729812,1779331176000,-883.12883705,8.219e-05,2]
[422729811,1779331176000,-420.49116295,8.219e-05,2]
[422729810,1779331176000,-501.51103813,8.219e-05,2]
[422729809,1779331176000,-77.99779892,8.219e-05,2]
[422729818,1779331177000,-500.0,8.219e-05,2]
[422729817,1779331177000,-385.79297492,8.219e-05,2]
[422729822,1779331177000,-113.38520057,8.219e-05,2]
[422729821,1779331177000,-500.0,8.219e-05,2]
[422729820,1779331177000,-386.61479943,8.219e-05,2]
[422729819,1779331177000,-114.20702508,8.219e-05,2]
[422729824,1779331178000,-613.38520057,8.219e-05,2]
[422729823,1779331178000,-386.61479943,8.219e-05,2]
[422729825,1779331180000,-264.49479943,8.219e-05,2]
[422729827,1779331180000,-234.22194339,8.219e-05,2]
[422729826,1779331180000,-501.28325718,8.219e-05,2]
[422729828,1779331180000,-267.01209824,8.219e-05,2]
[422729836,1779331181000,-132.30592492,8.219e-05,2]
[422729834,1779331181000,-367.69407508,8.219e-05,2]
[422729835,1779331181000,-500.0,8.219e-05,2]
[422729833,1779331181000,-231.30662222,8.219e-05,2]
[422729832,1779331181000,-500.0,8.219e-05,2]
[422729831,1779331181000,-268.69337778,8.219e-05,2]
[422729830,1779331181000,-231.30662222,8.219e-05,2]
[422729829,1779331181000,-501.68127954,8.219e-05,2]
[422729837,1779331182000,-367.69407508,8.219e-05,2]
[422729839,1779331182000,-199.97612744,8.219e-05,2]
[422729841,1779331182000,-699.97612744,8.219e-05,2]
[422729840,1779331182000,-300.02387256,8.219e-05,2]
[422729838,1779331182000,-432.32979748,8.219e-05,2]
[422729844,1779331183000,-597.55,8.219e-05,2]
[422729842,1779331183000,-1000.0,8.219e-05,2]
[422729843,1779331183000,-224.36387256,8.219e-05,2]
[422729845,1779331183000,-178.08612744,8.219e-05,2]
[422729849,1779331183000,-325.66233882,8.219e-05,2]
[422729847,1779331183000,-500.0,8.219e-05,2]
[422729850,1779331183000,-501.2845465,8.219e-05,2]
[422729846,1779331183000,-324.01021459,8.219e-05,2]
[422729848,1779331183000,-175.98978541,8.219e-05,2]
[422729851,1779331183000,-173.05311468,8.219e-05,2]
[422729852,1779331189000,-200.0,8.172e-05,2]
[422729856,1779331190000,-200.0,8.219e-05,2]
[422729854,1779331190000,-100.0,8.172e-05,2]
[422729855,1779331190000,-100.0,8.219e-05,2]
[422729853,1779331190000,-200.0,8.172e-05,2]
[422729859,1779331191000,-200.0,8.219e-05,2]
[422729858,1779331191000,-172.21984187,8.219e-05,2]
[422729857,1779331191000,-27.78015813,8.219e-05,2]
[422729863,1779331193000,-200.0,8.219e-05,2]
[422729860,1779331193000,-127.78015813,8.219e-05,2]
[422729861,1779331193000,-72.21984187,8.219e-05,2]
[422729862,1779331193000,-200.0,8.219e-05,2]
[422729865,1779331193000,-172.21984187,8.219e-05,2]
[422729866,1779331193000,-200.0,8.219e-05,2]
[422729868,1779331193000,-71.16459449,8.219e-05,2]
[422729867,1779331193000,-128.83540551,8.219e-05,2]
[422729864,1779331193000,-27.78015813,8.219e-05,2]
[422729870,1779331194000,-200.0,8.219e-05,2]
[422729869,1779331194000,-200.0,8.219e-05,2]
[422729871,1779331195000,-29.52100897,8.219e-05,2]
[422729872,1779331195000,-170.47899103,8.219e-05,2]
[422729876,1779331197000,-100.0,8.219e-05,2]
[422729875,1779331197000,-100.0,8.018e-05,2]
[422729874,1779331197000,-200.0,8.018e-05,2]
[422729873,1779331197000,-200.0,8.018e-05,2]
[422729877,1779331198000,-200.0,8.219e-05,2]
[422729878,1779331199000,-31.40604693,8.219e-05,2]
[422729879,1779331199000,-168.59395307,8.219e-05,2]
[422729883,1779331199000,-200.0,8.219e-05,2]
[422729881,1779331199000,-200.0,8.219e-05,2]
[422729882,1779331199000,-200.0,8.219e-05,2]
[422729880,1779331199000,-200.0,8.219e-05,2]
[422729884,1779331200000,-200.0,8.219e-05,2]
[422729888,1779331201000,-200.0,8.219e-05,2]
[422729887,1779331201000,-200.0,8.219e-05,2]
[422729886,1779331201000,-200.0,8.219e-05,2]
[422729885,1779331201000,-200.0,8.219e-05,2]
[422729889,1779331202000,-200.0,8.219e-05,2]
[422729890,1779331202000,-200.0,8.218e-05,2]
[422729891,1779331202000,-100.0,8.218e-05,2]
[422729892,1779331202000,-100.0,8.219e-05,2]
[422729893,1779331203000,-200.0,8.219e-05,2]
[422729894,1779331203000,-200.0,8.219e-05,2]
[422729898,1779331204000,-200.0,8.219e-05,2]
[422729897,1779331204000,-200.0,8.219e-05,2]
[422729896,1779331204000,-200.0,8.219e-05,2]
[422729895,1779331204000,-200.0,8.219e-05,2]
[422729899,1779331205000,-200.0,8.219e-05,2]
[422729901,1779331205000,-200.0,8.219e-05,2]
[422729900,1779331205000,-200.0,8.219e-05,2]
[422729902,1779331206000,-200.0,8.018e-05,2]
[422729903,1779331207000,-200.0,8.018e-05,2]
[422729904,1779331208000,-100.0,8.018e-05,2]
[422729905,1779331208000,-100.0,8.018e-05,2]
[422729906,1779331222000,-207.2383,8.018e-05,2]
[422729908,1779331227000,-7.2383,8.018e-05,2]
[422729907,1779331227000,-192.7617,8.018e-05,2]
[422729909,1779331228000,-200.0,8.018e-05,2]
[422729910,1779331229000,-200.0,8.018e-05,2]
[422729912,1779331231000,-107.2383,8.018e-05,2]
[422729911,1779331231000,-92.7617,8.018e-05,2]
[422729913,1779331238000,-501.17425518,8.219e-05,2]
[422729914,1779331238000,-498.82574482,8.219e-05,2]
[422729915,1779331239000,-416.84425518,8.219e-05,2]
[422729917,1779331239000,-81.38867429,8.219e-05,2]
[422729916,1779331239000,-501.76707053,8.219e-05,2]
[422729920,1779331240000,-80.56686168,8.219e-05,2]
[422729918,1779331240000,-419.43313832,8.219e-05,2]
[422729919,1779331240000,-500.0,8.219e-05,2]
[422729922,1779331243000,-500.0,8.219e-05,2]
[422729923,1779331243000,-79.89686168,8.219e-05,2]
[422729921,1779331243000,-420.10313832,8.219e-05,2]
[422729924,1779331244000,-420.10313832,8.219e-05,2]
[422729925,1779331244000,-579.89686168,8.219e-05,2]
[422729926,1779331251000,-500.0,8.219e-05,2]
[422729928,1779331374000,-500.0,7.918e-05,2]
[422729929,1779331374000,-515.20061511,7.918e-05,2]
[422729932,1779331374000,-500.0,7.918e-05,2]
[422729933,1779331374000,-500.0,7.918e-05,2]
[422729931,1779331374000,-500.0,7.918e-05,2]
[422729934,1779331374000,-500.0,7.918e-05,2]
[422729935,1779331374000,-500.0,7.918e-05,2]
[422729936,1779331374000,-300.0,7.918e-05,2]
[422729937,1779331374000,-7440.79938489,7.919e-05,2]
[422729938,1779331374000,-11756.0,7.919e-05,2]
[422729930,1779331374000,-500.0,7.918e-05,2]
[422729950,1779331831000,-600.84049431,7.564e-05,2]
[422729948,1779331831000,-151.0,7.449e-05,2]
[422729952,1779331831000,-151.0,7.679e-05,2]
[422729954,1779331831000,-237.0,7.917e-05,2]
[422729962,1779331831000,-578.20924308,8.074e-05,2]
[422729955,1779331831000,-300.0,7.917e-05,2]
[422729964,1779331831000,-500.0,8.218e-05,2]
[422729960,1779331831000,-557.5788265,8.019e-05,2]
[422729957,1779331831000,-160.738649,7.954e-05,2]
[422729959,1779331831000,-537.6845,7.964e-05,2]
[422729963,1779331831000,-683.70678058,8.129e-05,2]
[422729969,1779331831000,-500.98082421,8.219e-05,2]
[422729968,1779331831000,-500.0,8.218e-05,2]
[422729971,1779331831000,-500.0,8.219e-05,2]
[422729975,1779331831000,-502.10971714,8.219e-05,2]
[422729974,1779331831000,-501.28006804,8.219e-05,2]
[422729972,1779331831000,-232.70366036,8.219e-05,2]
[422729979,1779331831000,-348.86146648,8.219e-05,2]
[422729978,1779331831000,-151.76460033,8.219e-05,2]
[422729977,1779331831000,-502.01806167,8.219e-05,2]
[422729976,1779331831000,-501.5976502,8.219e-05,2]
[422729966,1779331831000,-500.0,8.218e-05,2]
[422729980,1779331832000,-500.0,8.219e-05,2]
[422729983,1779331832000,-49.94814177,8.219e-05,2]
[422729982,1779331832000,-500.0,8.219e-05,2]
[422729981,1779331832000,-501.06081439,8.219e-05,2]
[422730089,1779331838000,-471.86776009,8.218e-05,2]
[422730085,1779331838000,-500.0,8.218e-05,2]
[422730093,1779331838000,-500.0,8.218e-05,2]
[422730094,1779331838000,-500.0,8.218e-05,2]
[422730092,1779331838000,-500.0,8.218e-05,2]
[422730096,1779331838000,-500.0,8.219e-05,2]
[422730099,1779331838000,-500.0,8.219e-05,2]
[422730108,1779331838000,-500.87551802,8.219e-05,2]
[422730097,1779331838000,-500.0,8.219e-05,2]
[422730100,1779331838000,-500.0,8.219e-05,2]
[422730101,1779331838000,-500.2330321,8.219e-05,2]
[422730098,1779331838000,-500.0,8.219e-05,2]
[422730087,1779331838000,-28.13223991,8.218e-05,2]
[422730102,1779331838000,-500.0,8.219e-05,2]
[422730095,1779331838000,-451.99306887,8.219e-05,2]
[422730083,1779331838000,-500.0,8.218e-05,2]
[422730068,1779331838000,-500.0,8.218e-05,2]
[422730078,1779331838000,-500.0,8.218e-05,2]
[422730046,1779331838000,-500.0,8.218e-05,2]
[422730044,1779331838000,-500.0,8.218e-05,2]
[422730048,1779331838000,-136.54756164,8.218e-05,2]
[422730054,1779331838000,-174.09286894,8.218e-05,2]
[422730056,1779331838000,-500.0,8.218e-05,2]
[422730058,1779331838000,-500.0,8.218e-05,2]
[422730080,1779331838000,-500.49062999,8.218e-05,2]
[422730064,1779331838000,-500.0,8.218e-05,2]
[422730062,1779331838000,-170.0,8.218e-05,2]
[422730106,1779331838000,-500.0,8.219e-05,2]
[422730070,1779331838000,-500.0,8.218e-05,2]
[422730072,1779331838000,-628.28862721,8.218e-05,2]
[422730074,1779331838000,-500.0,8.218e-05,2]
[422730076,1779331838000,-500.0,8.218e-05,2]
[422730066,1779331838000,-500.0,8.218e-05,2]
[422730107,1779331838000,-501.31975641,8.219e-05,2]
[422730060,1779331838000,-500.0,8.218e-05,2]
[422730103,1779331838000,-500.0,8.219e-05,2]
[422730124,1779331838000,-500.0,8.219e-05,2]
[422730128,1779331838000,-500.0,8.219e-05,2]
[422730131,1779331838000,-501.18917957,8.219e-05,2]
[422730129,1779331838000,-624.49,8.219e-05,2]
[422730134,1779331838000,-501.3661105,8.219e-05,2]
[422730132,1779331838000,-500.0,8.219e-05,2]
[422730133,1779331838000,-500.0,8.219e-05,2]
[422730126,1779331838000,-500.0,8.219e-05,2]
[422730130,1779331838000,-1249.3,8.219e-05,2]
[422730136,1779331838000,-500.0,8.219e-05,2]
[422730138,1779331838000,-500.0,8.219e-05,2]
[422730140,1779331838000,-500.0,8.219e-05,2]
[422730137,1779331838000,-500.0,8.219e-05,2]
[422730141,1779331838000,-803.57,8.219e-05,2]
[422730104,1779331838000,-500.0,8.219e-05,2]
[422730127,1779331838000,-500.0,8.219e-05,2]
[422730135,1779331838000,-500.91828341,8.219e-05,2]
[422730139,1779331838000,-500.0,8.219e-05,2]
[422730123,1779331838000,-500.0,8.219e-05,2]
[422730125,1779331838000,-500.0,8.219e-05,2]
[422730111,1779331838000,-500.93228948,8.219e-05,2]
[422730122,1779331838000,-502.25790671,8.219e-05,2]
[422730110,1779331838000,-500.0,8.219e-05,2]
[422730121,1779331838000,-561.48,8.219e-05,2]
[422730112,1779331838000,-500.0,8.219e-05,2]
[422730113,1779331838000,-500.0,8.219e-05,2]
[422730109,1779331838000,-720.45,8.219e-05,2]
[422730114,1779331838000,-500.0,8.219e-05,2]
[422730118,1779331838000,-500.0,8.219e-05,2]
[422730119,1779331838000,-500.0,8.219e-05,2]
[422730117,1779331838000,-500.0,8.219e-05,2]
[422730105,1779331838000,-500.0,8.219e-05,2]
[422730115,1779331838000,-500.0,8.219e-05,2]
[422730116,1779331838000,-500.0,8.219e-05,2]
[422730120,1779331838000,-500.0,8.219e-05,2]
[422730189,1779331839000,-500.0,8.219e-05,2]
[422730191,1779331839000,-809.98,8.219e-05,2]
[422730190,1779331839000,-500.0,8.219e-05,2]
[422730182,1779331839000,-579.43,8.219e-05,2]
[422730183,1779331839000,-500.0,8.219e-05,2]
[422730179,1779331839000,-749.09,8.219e-05,2]
[422730186,1779331839000,-529.45,8.219e-05,2]
[422730184,1779331839000,-774.8,8.219e-05,2]
[422730185,1779331839000,-1046.24,8.219e-05,2]
[422730180,1779331839000,-880.86,8.219e-05,2]
[422730177,1779331839000,-1061.18,8.219e-05,2]
[422730188,1779331839000,-799.42,8.219e-05,2]
[422730194,1779331839000,-500.0,8.219e-05,2]
[422730181,1779331839000,-519.38,8.219e-05,2]
[422730187,1779331839000,-877.52,8.219e-05,2]
[422730203,1779331839000,-500.66881916,8.219e-05,2]
[422730192,1779331839000,-501.17921338,8.219e-05,2]
[422730193,1779331839000,-2591.53,8.219e-05,2]
[422730195,1779331839000,-2194.38,8.219e-05,2]
[422730196,1779331839000,-500.0,8.219e-05,2]
[422730212,1779331839000,-1000.0,8.219e-05,2]
[422730200,1779331839000,-678.85,8.219e-05,2]
[422730198,1779331839000,-595.18,8.219e-05,2]
[422730197,1779331839000,-2421.74,8.219e-05,2]
[422730201,1779331839000,-199.35237307,8.219e-05,2]
[422730148,1779331839000,-933.34,8.219e-05,2]
[422730199,1779331839000,-501.54064437,8.219e-05,2]
[422730205,1779331839000,-1380.21,8.219e-05,2]
[422730213,1779331839000,-1018.45366143,8.219e-05,2]
[422730178,1779331839000,-537.18,8.219e-05,2]
[422730202,1779331839000,-996.78,8.219e-05,2]
[422730176,1779331839000,-500.0,8.219e-05,2]
[422730160,1779331839000,-1844.16,8.219e-05,2]
[422730172,1779331839000,-1094.42,8.219e-05,2]
[422730149,1779331839000,-1937.27,8.219e-05,2]
[422730143,1779331839000,-1937.27,8.219e-05,2]
[422730147,1779331839000,-1937.27,8.219e-05,2]
[422730145,1779331839000,-1937.27,8.219e-05,2]
[422730146,1779331839000,-1937.27,8.219e-05,2]
[422730142,1779331839000,-228.31542747,8.219e-05,2]
[422730144,1779331839000,-1937.27,8.219e-05,2]
[422730150,1779331839000,-1937.27,8.219e-05,2]
[422730154,1779331839000,-500.0,8.219e-05,2]
[422730151,1779331839000,-1937.27,8.219e-05,2]
[422730153,1779331839000,-500.0,8.219e-05,2]
[422730155,1779331839000,-500.0,8.219e-05,2]
[422730159,1779331839000,-12759.72,8.219e-05,2]
[422730152,1779331839000,-1937.27,8.219e-05,2]
[422730171,1779331839000,-2207.6,8.219e-05,2]
[422730156,1779331839000,-500.0,8.219e-05,2]
[422730158,1779331839000,-501.12064474,8.219e-05,2]
[422730161,1779331839000,-500.0,8.219e-05,2]
[422730157,1779331839000,-806.25,8.219e-05,2]
[422730163,1779331839000,-503.31278689,8.219e-05,2]
[422730174,1779331839000,-501.00613044,8.219e-05,2]
[422730166,1779331839000,-500.0,8.219e-05,2]
[422730164,1779331839000,-500.0,8.219e-05,2]
[422730165,1779331839000,-2613.08,8.219e-05,2]
[422730175,1779331839000,-500.0,8.219e-05,2]
[422730167,1779331839000,-572.65,8.219e-05,2]
[422730170,1779331839000,-1262.17,8.219e-05,2]
[422730168,1779331839000,-500.0,8.219e-05,2]
[422730169,1779331839000,-501.10410755,8.219e-05,2]
[422730173,1779331839000,-500.0,8.219e-05,2]
[422730162,1779331839000,-501.56368464,8.219e-05,2]
[422730214,1779331839000,-151.0,8.219e-05,2]
[422730210,1779331839000,-1000.0,8.219e-05,2]
[422730204,1779331839000,-501.98906929,8.219e-05,2]
[422730249,1779331839000,-500.0,8.492e-05,2]
[422730247,1779331839000,-766.48970852,8.461e-05,2]
[422730248,1779331839000,-160.0,8.461e-05,2]
[422730245,1779331839000,-160.0,8.461e-05,2]
[422730256,1779331839000,-500.0,8.493e-05,2]
[422730250,1779331839000,-500.0,8.492e-05,2]
[422730252,1779331839000,-1937.27,8.492e-05,2]
[422730251,1779331839000,-295.03432428,8.492e-05,2]
[422730253,1779331839000,-1937.27,8.492e-05,2]
[422730254,1779331839000,-1937.27,8.492e-05,2]
[422730255,1779331839000,-1937.27,8.492e-05,2]
[422730268,1779331839000,-151.0,8.493e-05,2]
[422730267,1779331839000,-500.0,8.493e-05,2]
[422730269,1779331839000,-151.0,8.493e-05,2]
[422730246,1779331839000,-161.7158655,8.461e-05,2]
[422730257,1779331839000,-500.0,8.493e-05,2]
[422730261,1779331839000,-500.0,8.493e-05,2]
[422730262,1779331839000,-500.0,8.493e-05,2]
[422730259,1779331839000,-500.0,8.493e-05,2]
[422730260,1779331839000,-500.0,8.493e-05,2]
[422730258,1779331839000,-500.0,8.493e-05,2]
[422730265,1779331839000,-720.45,8.493e-05,2]
[422730264,1779331839000,-277.44414041,8.493e-05,2]
[422730266,1779331839000,-326.917,8.493e-05,2]
[422730274,1779331839000,-294.30906909,8.493e-05,2]
[422730270,1779331839000,-500.0,8.493e-05,2]
[422730272,1779331839000,-500.0,8.493e-05,2]
[422730273,1779331839000,-500.0,8.493e-05,2]
[422730275,1779331839000,-500.0,8.493e-05,2]
[422730215,1779331839000,-151.0,8.219e-05,2]
[422730263,1779331839000,-500.0,8.493e-05,2]
[422730244,1779331839000,-154.802,8.385e-05,2]
[422730224,1779331839000,-300.0,8.382e-05,2]
[422730238,1779331839000,-500.0,8.385e-05,2]
[422730216,1779331839000,-151.0,8.219e-05,2]
[422730206,1779331839000,-500.0,8.219e-05,2]
[422730209,1779331839000,-1000.0,8.219e-05,2]
[422730207,1779331839000,-500.71537376,8.219e-05,2]
[422730208,1779331839000,-501.13089128,8.219e-05,2]
[422730211,1779331839000,-1000.0,8.219e-05,2]
[422730217,1779331839000,-156.94433516,8.219e-05,2]
[422730220,1779331839000,-151.0,8.294e-05,2]
[422730219,1779331839000,-385.33965615,8.219e-05,5]
[422730225,1779331839000,-300.0,8.382e-05,2]
[422730218,1779331839000,-192.66982808,8.219e-05,5]
[422730221,1779331839000,-160.738649,8.372e-05,2]
[422730223,1779331839000,-300.0,8.382e-05,2]
[422730222,1779331839000,-300.0,8.382e-05,2]
[422730226,1779331839000,-300.0,8.382e-05,2]
[422730239,1779331839000,-2203.0,8.385e-05,2]
[422730229,1779331839000,-300.0,8.382e-05,2]
[422730228,1779331839000,-300.0,8.382e-05,2]
[422730232,1779331839000,-300.0,8.382e-05,2]
[422730233,1779331839000,-300.0,8.382e-05,2]
[422730237,1779331839000,-600.0,8.382e-05,2]
[422730234,1779331839000,-300.0,8.382e-05,2]
[422730230,1779331839000,-300.0,8.382e-05,2]
[422730236,1779331839000,-300.0,8.382e-05,2]
[422730242,1779331839000,-185.0,8.385e-05,2]
[422730243,1779331839000,-443.0,8.385e-05,2]
[422730241,1779331839000,-1413.0,8.385e-05,2]
[422730231,1779331839000,-300.0,8.382e-05,2]
[422730240,1779331839000,-647.0,8.385e-05,2]
[422730227,1779331839000,-300.0,8.382e-05,2]
[422730235,1779331839000,-300.0,8.382e-05,2]
[422730320,1779331840000,-1061.18,8.493e-05,2]
[422730319,1779331840000,-500.0,8.493e-05,2]
[422730321,1779331840000,-537.18,8.493e-05,2]
[422730318,1779331840000,-500.0,8.493e-05,2]
[422730314,1779331840000,-1262.17,8.493e-05,2]
[422730312,1779331840000,-572.65,8.493e-05,2]
[422730309,1779331840000,-500.0,8.493e-05,2]
[422730317,1779331840000,-500.0,8.493e-05,2]
[422730316,1779331840000,-1094.42,8.493e-05,2]
[422730315,1779331840000,-2207.6,8.493e-05,2]
[422730322,1779331840000,-749.09,8.493e-05,2]
[422730311,1779331840000,-500.0,8.493e-05,2]
[422730313,1779331840000,-500.0,8.493e-05,2]
[422730324,1779331840000,-579.43,8.493e-05,2]
[422730330,1779331840000,-500.0,8.493e-05,2]
[422730334,1779331840000,-2194.38,8.493e-05,2]
[422730335,1779331840000,-500.0,8.493e-05,2]
[422730325,1779331840000,-500.0,8.493e-05,2]
[422730326,1779331840000,-774.8,8.493e-05,2]
[422730336,1779331840000,-2421.74,8.493e-05,2]
[422730328,1779331840000,-877.52,8.493e-05,2]
[422730327,1779331840000,-1046.24,8.493e-05,2]
[422730331,1779331840000,-809.98,8.493e-05,2]
[422730329,1779331840000,-799.42,8.493e-05,2]
[422730333,1779331840000,-500.0,8.493e-05,2]
[422730332,1779331840000,-2591.53,8.493e-05,2]
[422730337,1779331840000,-595.18,8.493e-05,2]
[422730310,1779331840000,-2613.08,8.493e-05,2]
[422730323,1779331840000,-880.86,8.493e-05,2]
[422730308,1779331840000,-500.0,8.493e-05,2]